bitfinex-derivatives/quotes_BTCF0:USTF0_20250809
["timestamp","ask_amount","ask_price","bid_price","bid_amount"]
[1754726715500,0.94287189,116850.0,116840.0,1.38808354]
[1754726715701,0.58207189,116850.0,116840.0,1.38808354]
[1754726716398,0.32083602,116850.0,116840.0,1.38808354]
[1754726716600,0.58207189,116850.0,116840.0,1.38808354]
[1754726716799,0.32083602,116850.0,116840.0,1.38808354]
[1754726717000,0.58207189,116850.0,116840.0,1.38808354]
[1754726718303,0.32083602,116850.0,116840.0,1.38808354]
[1754726718499,0.58207189,116850.0,116840.0,1.38808354]
[1754726718902,0.32083602,116850.0,116840.0,1.38808354]
[1754726719097,0.19493202,116850.0,116840.0,1.38808354]
[1754726719301,0.19493202,116850.0,116840.0,0.8656118]
[1754726719302,0.099204,116850.0,116840.0,0.8656118]
[1754726719602,0.193704,116850.0,116840.0,1.38808354]
[1754726723005,0.193704,116850.0,116840.0,0.8656118]
[1754726723303,0.193704,116850.0,116840.0,1.38808354]
[1754726723697,0.193704,116850.0,116840.0,1.65518354]
[1754726723897,0.193704,116850.0,116840.0,1.1327118]
[1754726724102,0.1465818,116850.0,116840.0,1.65518354]
[1754726724303,0.1233466,116850.0,116840.0,1.65518354]
[1754726724497,0.099405,116850.0,116840.0,1.66755354]
[1754726724697,0.0489147,116850.0,116840.0,1.66770354]
[1754726724898,0.0202605,116850.0,116840.0,1.67415354]
[1754726725103,1e-07,116850.0,116840.0,1.67415354]
[1754726726506,0.0821983,116850.0,116840.0,1.67415354]
[1754726726804,0.0176761,116850.0,116840.0,1.67415354]
[1754726727005,1e-07,116850.0,116840.0,1.67415354]
[1754726727205,0.71666452,116860.0,116850.0,0.04734]
[1754726727406,0.71666452,116860.0,116850.0,0.38167587]
[1754726727606,0.81148715,116860.0,116850.0,0.46724047]
[1754726729104,0.57448128,116860.0,116850.0,0.46724047]
[1754726729605,0.83571715,116860.0,116850.0,0.73434047]
[1754726730006,0.95063515,116860.0,116850.0,0.73434047]
[1754726731014,0.95063515,116860.0,116850.0,0.74274255]
[1754726731215,0.95063515,116860.0,116850.0,0.48150668]
[1754726731408,0.95063515,116860.0,116850.0,0.74274255]
[1754726733112,0.95063515,116860.0,116850.0,0.48150668]
[1754726733316,0.91165515,116860.0,116850.0,0.48150668]
[1754726733616,0.95063515,116860.0,116850.0,0.48150668]
[1754726733818,0.95063515,116860.0,116850.0,0.74274255]
[1754726734311,0.95063515,116860.0,116850.0,0.48150668]
[1754726734509,0.95063515,116860.0,116850.0,0.74274255]
[1754726738021,0.92844515,116860.0,116850.0,0.74274255]
[1754726738421,0.95278515,116860.0,116850.0,0.74274255]
[1754726738616,0.95278515,116860.0,116850.0,0.48150668]
[1754726738918,0.95278515,116860.0,116850.0,0.74274255]
[1754726743918,0.95278515,116860.0,116850.0,0.48150668]
[1754726744120,0.95278515,116860.0,116850.0,0.74274255]
[1754726744324,0.95278515,116860.0,116850.0,0.48150668]
[1754726744623,0.95278515,116860.0,116850.0,0.74274255]
[1754726744924,0.95278515,116860.0,116850.0,0.48150668]
[1754726745124,0.95278515,116860.0,116850.0,0.74274255]
[1754726746626,0.95278515,116860.0,116850.0,0.74374255]
[1754726748024,0.69154928,116860.0,116850.0,0.74374255]
[1754726748224,0.95278515,116860.0,116850.0,0.74374255]
[1754726748420,0.57066928,116860.0,116850.0,0.74374255]
[1754726748623,0.57066928,116860.0,116850.0,0.74474255]
[1754726748830,0.63728928,116860.0,116850.0,0.74474255]
[1754726749021,0.66835928,116860.0,116850.0,0.74474255]
[1754726749223,0.69269928,116860.0,116850.0,0.74474255]
[1754726750530,0.95393515,116860.0,116850.0,0.74474255]
[1754726751930,0.69269928,116860.0,116850.0,0.74474255]
[1754726756627,0.69269928,116860.0,116850.0,0.48350668]
[1754726756835,0.69269928,116860.0,116850.0,0.74474255]
[1754726757833,0.69269928,116860.0,116850.0,0.48350668]
[1754726758035,0.69269928,116860.0,116850.0,0.74474255]
[1754726759035,0.69269928,116860.0,116850.0,0.48350668]
[1754726759235,0.69269928,116860.0,116850.0,0.74474255]
[1754726759732,0.69269928,116860.0,116850.0,0.48350668]
[1754726759932,0.69269928,116860.0,116850.0,0.74474255]
[1754726761433,0.39579,116880.0,116870.0,0.11699]
[1754726761631,0.45849,116890.0,116880.0,0.2025325]
[1754726761938,0.85511824,116890.0,116880.0,0.72500424]
[1754726762135,0.59388237,116890.0,116880.0,0.72500424]
[1754726762635,0.59688237,116890.0,116880.0,0.72500424]
[1754726763139,0.57698612,116890.0,116880.0,0.72500424]
[1754726763339,0.57698612,116890.0,116880.0,0.2025325]
[1754726763540,0.57698612,116890.0,116880.0,0.72500424]
[1754726763833,0.83822199,116890.0,116880.0,0.72500424]
[1754726764140,0.83822199,116890.0,116880.0,0.46376837]
[1754726764532,0.95313999,116890.0,116880.0,0.46376837]
[1754726765729,0.95313999,116890.0,116880.0,0.72500424]
[1754726765929,0.69190412,116890.0,116880.0,0.2025325]
[1754726766137,0.95313999,116890.0,116880.0,0.72500424]
[1754726766337,0.95013999,116890.0,116880.0,0.72500424]
[1754726766537,0.95013999,116890.0,116880.0,0.46376837]
[1754726766736,0.68890412,116890.0,116880.0,0.46376837]
[1754726767038,0.95423999,116890.0,116880.0,0.72500424]
[1754726769943,0.69300412,116890.0,116880.0,0.72500424]
[1754726770242,0.69300412,116890.0,116880.0,0.2025325]
[1754726770439,0.69300412,116890.0,116880.0,0.72500424]
[1754726771340,0.69300412,116890.0,116880.0,0.2025325]
[1754726771530,0.66757722,116890.0,116880.0,0.72500424]
[1754726771735,0.11162312,116890.0,116880.0,0.72500424]
[1754726771935,0.01402,116890.0,116880.0,1.35290424]
[1754726772140,9e-08,116890.0,116880.0,1.35290424]
[1754726772336,0.33135587,116900.0,116890.0,0.2061052]
[1754726772539,0.07012,116900.0,116890.0,1.25030107]
[1754726772738,0.16505272,116900.0,116890.0,0.9890652]
[1754726773038,0.16505272,116900.0,116890.0,1.25030107]
[1754726773539,0.16605272,116900.0,116890.0,1.3498652]
[1754726773841,0.12508002,116900.0,116890.0,1.3498652]
[1754726774029,0.17181002,116900.0,116890.0,1.3498652]
[1754726774232,0.17181002,116900.0,116890.0,1.61110107]
[1754726774233,0.14421582,116900.0,116890.0,1.61110107]
[1754726774434,0.10233742,116900.0,116890.0,1.61110107]
[1754726774741,0.04361872,116900.0,116890.0,1.61110107]
[1754726774945,6e-08,116900.0,116890.0,1.78216707]
[1754726775143,1e-07,116900.0,116890.0,1.78216707]
[1754726775342,0.0112115,116900.0,116890.0,2.04340294]
[1754726775641,1e-07,116900.0,116890.0,1.78216707]
[1754726775842,1e-07,116900.0,116890.0,1.85045693]
[1754726776942,1e-07,116900.0,116890.0,2.11755693]
[1754726779136,1e-07,116900.0,116890.0,2.3787928]
[1754726779534,1e-07,116900.0,116890.0,2.11755693]
[1754726780544,1e-07,116900.0,116890.0,1.85632106]
[1754726780745,1e-07,116900.0,116890.0,2.3787928]
[1754726781342,1e-07,116900.0,116890.0,1.85632106]
[1754726781539,1e-07,116900.0,116890.0,2.3787928]
[1754726783038,1e-07,116900.0,116890.0,2.11755693]
[1754726784240,1e-07,116900.0,116890.0,1.85632106]
[1754726784437,1e-07,116900.0,116890.0,2.11755693]
[1754726785048,1e-07,116900.0,116890.0,1.58922106]
[1754726785440,1e-07,116900.0,116890.0,1.85045693]
[1754726786239,1e-07,116900.0,116890.0,0.80626106]
[1754726786439,1e-07,116900.0,116890.0,1.85229693]
[1754726787748,1e-07,116900.0,116890.0,1.59106106]
[1754726787941,1e-07,116900.0,116890.0,1.85229693]
[1754726793047,1e-07,116900.0,116890.0,1.59106106]
[1754726793244,1e-07,116900.0,116890.0,1.85229693]
[1754726794751,1e-07,116900.0,116890.0,2.11939693]
[1754726797950,1e-07,116900.0,116890.0,2.12039693]
[1754726798141,1e-07,116900.0,116890.0,2.12239693]
[1754726803757,1e-07,116900.0,116890.0,1.86116106]
[1754726804151,1e-07,116900.0,116890.0,2.12239693]
[1754726806646,0.3608001,116900.0,116890.0,1.76159693]
[1754726811555,0.3608001,116900.0,116890.0,1.50036106]
[1754726811756,0.3608001,116900.0,116890.0,1.76159693]
[1754726813558,0.62203597,116900.0,116890.0,1.76159693]
[1754726814554,0.7145195,116900.0,116890.0,1.49960106]
[1754726814757,0.97575537,116900.0,116890.0,1.76083693]
[1754726815267,0.45328363,116900.0,116890.0,1.76083693]
[1754726815564,0.7145195,116900.0,116890.0,1.76083693]
[1754726815759,0.45328363,116900.0,116890.0,1.75883693]
[1754726816064,0.7145195,116900.0,116890.0,1.75883693]
[1754726816364,0.7145195,116900.0,116890.0,1.75783693]
[1754726817064,0.7155195,116900.0,116890.0,1.75783693]
[1754726817364,0.7165195,116900.0,116890.0,1.75783693]
[1754726818457,0.7165195,116900.0,116890.0,1.49073693]
[1754726819959,0.45528363,116900.0,116890.0,1.49073693]
[1754726820259,0.7165195,116900.0,116890.0,1.49073693]
[1754726821661,0.3547195,116900.0,116890.0,1.49073693]
[1754726822465,0.3537195,116900.0,116890.0,1.49073693]
[1754726822666,0.09248363,116900.0,116890.0,1.49073693]
[1754726822860,0.3537195,116900.0,116890.0,1.49073693]
[1754726823260,0.09248363,116900.0,116890.0,1.49073693]
[1754726823560,0.3537195,116900.0,116890.0,1.49073693]
[1754726823958,0.09248363,116900.0,116890.0,1.49073693]
[1754726824462,0.3537195,116900.0,116890.0,1.49073693]
[1754726824967,0.09248363,116900.0,116890.0,1.49073693]
[1754726825166,0.3537195,116900.0,116890.0,1.49073693]
[1754726829464,0.09248363,116900.0,116890.0,1.49073693]
[1754726829969,0.3537195,116900.0,116890.0,1.49073693]
[1754726830169,0.3537195,116900.0,116890.0,1.22950106]
[1754726830370,0.3537195,116900.0,116890.0,1.49073693]
[1754726833069,0.3537195,116900.0,116890.0,1.22950106]
[1754726833269,0.09248363,116900.0,116890.0,1.49073693]
[1754726833470,0.3537195,116900.0,116890.0,1.49073693]
[1754726835073,0.09248363,116900.0,116890.0,1.49073693]
[1754726835272,0.3537195,116900.0,116890.0,1.49073693]
[1754726837376,0.09248363,116900.0,116890.0,1.49073693]
[1754726837570,0.3537195,116900.0,116890.0,1.49073693]
[1754726839282,0.09248363,116900.0,116890.0,1.49073693]
[1754726839482,0.3537195,116900.0,116890.0,1.49073693]
[1754726839981,0.3537195,116900.0,116890.0,1.22950106]
[1754726840182,0.3537195,116900.0,116890.0,1.49073693]
[1754726840582,0.09248363,116900.0,116890.0,1.49073693]
[1754726840882,0.3537195,116900.0,116890.0,1.49073693]
[1754726841070,0.09248363,116900.0,116890.0,1.49073693]
[1754726841271,0.06865953,116900.0,116890.0,1.49073693]
[1754726841580,0.2983538,116900.0,116890.0,1.49073693]
[1754726841978,0.2657038,116900.0,116890.0,1.49073693]
[1754726842586,3e-08,116900.0,116890.0,1.85153693]
[1754726843885,3e-08,116900.0,116890.0,1.85253693]
[1754726844591,3e-08,116900.0,116890.0,1.85453693]
[1754726847997,3e-08,116900.0,116890.0,1.86040106]
[1754726848197,3e-08,116900.0,116890.0,2.12163693]
[1754726849293,3e-08,116900.0,116890.0,1.86040106]
[1754726849498,3e-08,116900.0,116890.0,2.12163693]
[1754726852097,0.0868673,116900.0,116890.0,1.76083693]
[1754726852294,0.62603587,116910.0,116900.0,0.1351081]
[1754726852495,0.64490985,116910.0,116900.0,0.46816397]
[1754726852686,0.74088626,116910.0,116900.0,0.46816397]
[1754726854898,0.74088626,116910.0,116900.0,0.2069281]
[1754726855200,0.74088626,116910.0,116900.0,0.46816397]
[1754726855500,0.74088626,116910.0,116900.0,0.47682752]
[1754726856101,0.74088626,116910.0,116900.0,0.21559165]
[1754726856600,0.74088626,116910.0,116900.0,0.47682752]
[1754726860506,0.47965039,116910.0,116900.0,0.47682752]
[1754726860704,0.74088626,116910.0,116900.0,0.47682752]
[1754726861109,0.47965039,116910.0,116900.0,0.47682752]
[1754726861406,0.74088626,116910.0,116900.0,0.47682752]
[1754726862106,0.74088626,116910.0,116900.0,0.46816397]
[1754726863210,0.74088626,116910.0,116900.0,0.47665004]
[1754726863909,0.74089212,116910.0,116900.0,0.47665004]
[1754726864910,0.74089212,116910.0,116900.0,0.21541417]
[1754726865112,0.74089212,116910.0,116900.0,0.47665004]
[1754726865309,0.47965625,116910.0,116900.0,0.47665004]
[1754726865510,0.74089212,116910.0,116900.0,0.47665004]
[1754726865912,0.47965625,116910.0,116900.0,0.47665004]
[1754726866115,0.74089212,116910.0,116900.0,0.2069281]
[1754726866411,0.74089212,116910.0,116900.0,0.46816397]
[1754726866817,0.74089212,116910.0,116900.0,0.47016397]
[1754726867213,0.74089212,116910.0,116900.0,0.47857562]
[1754726867404,0.74089212,116910.0,116900.0,0.47657562]
[1754726868816,0.47965625,116910.0,116900.0,0.47657562]
[1754726869012,0.74089212,116910.0,116900.0,0.47657562]
[1754726869717,0.74089212,116910.0,116900.0,0.21533975]
[1754726869911,0.74089212,116910.0,116900.0,0.47657562]
[1754726872721,0.38009212,116910.0,116900.0,0.47657562]
[1754726872922,0.74089212,116910.0,116900.0,0.47657562]
[1754726873323,0.74089212,116910.0,116900.0,0.46816397]
[1754726874422,0.38009212,116910.0,116900.0,0.46816397]
[1754726874624,0.74089212,116910.0,116900.0,0.46816397]
[1754726877921,0.74089212,116910.0,116900.0,0.2069281]
[1754726878120,0.74089212,116910.0,116900.0,0.46816397]
[1754726878528,0.74089212,116910.0,116900.0,0.2069281]
[1754726878730,0.74089212,116910.0,116900.0,0.46816397]
[1754726879528,0.47965625,116910.0,116900.0,0.46816397]
[1754726879830,0.74089212,116910.0,116900.0,0.46816397]
[1754726881432,0.47965625,116910.0,116900.0,0.46816397]
[1754726881931,0.74089212,116910.0,116900.0,0.46816397]
[1754726882833,0.74089212,116910.0,116900.0,0.2069281]
[1754726883032,0.74089212,116910.0,116900.0,0.1592281]
[1754726883225,0.73689212,116910.0,116900.0,0.2080381]
[1754726885430,0.73689212,116910.0,116900.0,0.46927397]
[1754726885933,0.47565625,116910.0,116900.0,0.46927397]
[1754726886126,0.73689212,116910.0,116900.0,0.46927397]
[1754726888327,0.74089212,116910.0,116900.0,0.46927397]
[1754726890032,0.47965625,116910.0,116900.0,0.46927397]
[1754726890335,0.74089212,116910.0,116900.0,0.46927397]
[1754726890738,0.73689212,116910.0,116900.0,0.46927397]
[1754726894641,0.73689212,116910.0,116900.0,0.2080381]
[1754726895042,0.73689212,116910.0,116900.0,0.46927397]
[1754726895743,0.74089212,116910.0,116900.0,0.46927397]
[1754726898847,0.47965625,116910.0,116900.0,0.46927397]
[1754726899148,0.74089212,116910.0,116900.0,0.46927397]
[1754726900951,0.47965625,116910.0,116900.0,0.46927397]
[1754726901250,0.74089212,116910.0,116900.0,0.46927397]
[1754726901751,0.47965625,116910.0,116900.0,0.46927397]
[1754726901952,0.74089212,116910.0,116900.0,0.2080381]
[1754726902253,0.74089212,116910.0,116900.0,0.46927397]
[1754726902451,0.47965625,116910.0,116900.0,0.46927397]
[1754726902653,0.74089212,116910.0,116900.0,0.46927397]
[1754726902952,0.47965625,116910.0,116900.0,0.46927397]
[1754726903151,0.74089212,116910.0,116900.0,0.46927397]
[1754726905552,0.47965625,116910.0,116900.0,0.46927397]
[1754726905752,0.74089212,116910.0,116900.0,0.46927397]
[1754726905943,0.47965625,116910.0,116900.0,0.46927397]
[1754726906148,0.47965625,116910.0,116900.0,0.73050984]
[1754726906450,0.74089212,116910.0,116900.0,0.46927397]
[1754726906756,0.47965625,116910.0,116900.0,0.46927397]
[1754726907053,0.74089212,116910.0,116900.0,0.46927397]
[1754726909547,0.47965625,116910.0,116900.0,0.46927397]
[1754726909748,0.74089212,116910.0,116900.0,0.46927397]
[1754726912060,0.47965625,116910.0,116900.0,0.46927397]
[1754726912358,0.74089212,116910.0,116900.0,0.46927397]
[1754726916058,0.74089212,116910.0,116900.0,0.2080381]
[1754726916263,0.74089212,116910.0,116900.0,0.46927397]
[1754726917665,0.47965625,116910.0,116900.0,0.46927397]
[1754726917864,0.74089212,116910.0,116900.0,0.46927397]
[1754726920061,0.74091961,116910.0,116900.0,0.46927397]
[1754726923172,0.73691961,116910.0,116900.0,0.46927397]
[1754726923469,0.73689481,116910.0,116900.0,0.46927397]
[1754726924874,0.47565894,116910.0,116900.0,0.46927397]
[1754726925169,0.73689481,116910.0,116900.0,0.46927397]
[1754726928276,0.74089481,116910.0,116900.0,0.46927397]
[1754726933178,0.47965894,116910.0,116900.0,0.46927397]
[1754726933370,0.74089481,116910.0,116900.0,0.46927397]
[1754726934682,0.38009481,116910.0,116900.0,0.46927397]
[1754726934880,0.74089481,116910.0,116900.0,0.46927397]
[1754726942798,0.74089481,116910.0,116900.0,0.2080381]
[1754726943392,0.74089481,116910.0,116900.0,0.46927397]
[1754726949398,0.38009481,116910.0,116900.0,0.46927397]
[1754726949593,0.74089481,116910.0,116900.0,0.46927397]
[1754726950304,0.74089481,116910.0,116900.0,0.2080381]
[1754726950500,0.74089481,116910.0,116900.0,0.46927397]
[1754726951696,0.74084257,116910.0,116900.0,0.46927397]
[1754726952995,0.38004257,116910.0,116900.0,0.46927397]
[1754726953297,0.4796067,116910.0,116900.0,0.46927397]
[1754726953501,0.74084257,116910.0,116900.0,0.46927397]
[1754726957104,0.74084257,116910.0,116900.0,0.2080381]
[1754726957308,0.74084257,116910.0,116900.0,0.46927397]
[1754726957606,0.74084257,116910.0,116900.0,0.2080381]
[1754726957817,0.74084257,116910.0,116900.0,0.46927397]
[1754726960406,0.74084257,116910.0,116900.0,0.2080381]
[1754726960600,0.74084257,116910.0,116900.0,0.46927397]
[1754726961205,0.74084257,116910.0,116900.0,0.2080381]
[1754726961406,0.74084257,116910.0,116900.0,0.46927397]
[1754726971613,0.4796067,116910.0,116900.0,0.46927397]
[1754726971914,0.74084257,116910.0,116900.0,0.46927397]
[1754726973313,0.74084257,116910.0,116900.0,0.1096481]
[1754726973512,0.74084257,116910.0,116900.0,0.2025681]
[1754726974213,0.74084257,116910.0,116900.0,0.46380397]
[1754726974708,0.74184257,116910.0,116900.0,0.46380397]
[1754726975609,0.74284257,116910.0,116900.0,0.46380397]
[1754726975805,0.74284257,116910.0,116900.0,0.2025681]
[1754726976005,0.74284257,116910.0,116900.0,0.46380397]
[1754726977208,0.4816067,116910.0,116900.0,0.46380397]
[1754726977514,0.74284257,116910.0,116900.0,0.46380397]
[1754726979213,0.74284257,116910.0,116900.0,0.2025681]
[1754726979512,0.74284257,116910.0,116900.0,0.46380397]
[1754726982906,0.74284257,116910.0,116900.0,0.2025681]
[1754726983105,0.74284257,116910.0,116900.0,0.46380397]
[1754726984314,0.4816067,116910.0,116900.0,0.46380397]
[1754726984614,0.74284257,116910.0,116900.0,0.46380397]
[1754726984914,0.74284257,116910.0,116900.0,0.2025681]
[1754726985213,0.74284257,116910.0,116900.0,0.46380397]
[1754726986116,0.4816067,116910.0,116900.0,0.46380397]
[1754726986321,0.74284257,116910.0,116900.0,0.46380397]
[1754726986508,0.4816067,116910.0,116900.0,0.46380397]
[1754726986707,0.74284257,116910.0,116900.0,0.46380397]
[1754726990316,0.4816067,116910.0,116900.0,0.46380397]
[1754726990513,0.74284257,116910.0,116900.0,0.46380397]
[1754726991116,0.74291754,116910.0,116900.0,0.46380397]
[1754726993518,0.74091754,116910.0,116900.0,0.46380397]
[1754726993719,0.74291754,116910.0,116900.0,0.46380397]
[1754726995121,0.74191754,116910.0,116900.0,0.46380397]
[1754726995619,0.74091754,116910.0,116900.0,0.46380397]
[1754726999019,0.47968167,116910.0,116900.0,0.46380397]
[1754726999220,0.74091754,116910.0,116900.0,0.46380397]
[1754726999923,0.47968167,116910.0,116900.0,0.46380397]
[1754727000122,0.74091754,116910.0,116900.0,0.46380397]
[1754727001221,0.47968167,116910.0,116900.0,0.46380397]
[1754727001525,0.74091754,116910.0,116900.0,0.2025681]
[1754727001722,0.74091754,116910.0,116900.0,0.46380397]
[1754727002923,0.73691754,116910.0,116900.0,0.46380397]
[1754727004621,0.47568167,116910.0,116900.0,0.46380397]
[1754727004820,0.73691754,116910.0,116900.0,0.46380397]
[1754727005025,0.47568167,116910.0,116900.0,0.46380397]
[1754727005225,0.73691754,116910.0,116900.0,0.46380397]
[1754727007729,0.73691754,116910.0,116900.0,0.2025681]
[1754727007927,0.74091754,116910.0,116900.0,0.2025681]
[1754727008122,0.74091754,116910.0,116900.0,0.46380397]
[1754727008928,0.74091754,116910.0,116900.0,0.2025681]
[1754727009127,0.74091754,116910.0,116900.0,0.46380397]
[1754727010228,0.74091754,116910.0,116900.0,0.2025681]
[1754727010526,0.74091754,116910.0,116900.0,0.46380397]
[1754727011926,0.74091754,116910.0,116900.0,0.2025681]
[1754727012114,0.74091754,116910.0,116900.0,0.46380397]
[1754727013628,0.47968167,116910.0,116900.0,0.46380397]
[1754727013828,0.74091754,116910.0,116900.0,0.46380397]
[1754727018231,0.47968167,116910.0,116900.0,0.46380397]
[1754727018429,0.74091754,116910.0,116900.0,0.46380397]
[1754727019027,0.74091754,116910.0,116900.0,0.2025681]
[1754727019229,0.74091754,116910.0,116900.0,0.46380397]
[1754727019731,0.47968167,116910.0,116900.0,0.46380397]
[1754727020028,0.74091754,116910.0,116900.0,0.2025681]
[1754727020227,0.74091754,116910.0,116900.0,0.46380397]
[1754727021032,0.74091754,116910.0,116900.0,0.2025681]
[1754727021232,0.74091754,116910.0,116900.0,0.46380397]
[1754727021924,0.74091754,116910.0,116900.0,0.2025681]
[1754727022125,0.74091754,116910.0,116900.0,0.46380397]
[1754727024932,0.47968167,116910.0,116900.0,0.46380397]
[1754727025328,0.74091754,116910.0,116900.0,0.46380397]
[1754727026935,0.47968167,116910.0,116900.0,0.46380397]
[1754727027234,0.74091754,116910.0,116900.0,0.2025681]
[1754727027534,0.74091754,116910.0,116900.0,0.46380397]
[1754727028434,0.74091754,116910.0,116900.0,0.2025681]
[1754727028633,0.74091754,116910.0,116900.0,0.46380397]
[1754727029334,0.74091754,116910.0,116900.0,0.2025681]
[1754727029536,0.74091754,116910.0,116900.0,0.46380397]
[1754727029729,0.47968167,116910.0,116900.0,0.2025681]
[1754727029935,0.74091754,116910.0,116900.0,0.46380397]
[1754727032736,0.74091754,116910.0,116900.0,0.2025681]
[1754727032946,0.74091754,116910.0,116900.0,0.46380397]
[1754727033847,0.74091754,116910.0,116900.0,0.2025681]
[1754727034146,0.74091754,116910.0,116900.0,0.46380397]
[1754727035349,0.47968167,116910.0,116900.0,0.46380397]
[1754727035552,0.74091754,116910.0,116900.0,0.46380397]
[1754727037451,0.74091754,116910.0,116900.0,0.2025681]
[1754727037652,0.74091754,116910.0,116900.0,0.46380397]
[1754727038554,0.74091754,116910.0,116900.0,0.2025681]
[1754727038746,0.74091754,116910.0,116900.0,0.46380397]
[1754727038944,0.47968167,116910.0,116900.0,0.46380397]
[1754727039148,0.74091754,116910.0,116900.0,0.46380397]
[1754727041055,0.74091754,116910.0,116900.0,0.2025681]
[1754727041353,0.74091754,116910.0,116900.0,0.46380397]
[1754727045656,0.74091754,116910.0,116900.0,0.2025681]
[1754727045857,0.74091754,116910.0,116900.0,0.46380397]
[1754727046356,0.47968167,116910.0,116900.0,0.46380397]
[1754727046656,0.74091754,116910.0,116900.0,0.46380397]
[1754727048157,0.74091754,116910.0,116900.0,0.2025681]
[1754727048355,0.74091754,116910.0,116900.0,0.46380397]
[1754727052060,0.74091754,116910.0,116900.0,0.2025681]
[1754727052258,0.74091754,116910.0,116900.0,0.46380397]
[1754727052654,0.74091754,116910.0,116900.0,0.2025681]
[1754727052846,0.47968167,116910.0,116900.0,0.46380397]
[1754727053053,0.74091754,116910.0,116900.0,0.46380397]
[1754727053752,0.74091754,116910.0,116900.0,0.2025681]
[1754727056159,1.00215341,116910.0,116900.0,0.0855281]
[1754727056356,1.08767451,116910.0,116900.0,0.0855281]
[1754727056556,1.17321405,116910.0,116900.0,0.0855281]
[1754727058359,1.17521405,116910.0,116900.0,0.0855281]
[1754727058864,1.17721405,116910.0,116900.0,0.0855281]
[1754727060563,1.60952992,116910.0,116900.0,0.0855281]
[1754727062265,1.34829405,116910.0,116900.0,0.0855281]
[1754727066670,1.17721405,116910.0,116900.0,0.0855281]
[1754727068065,0.81641405,116910.0,116900.0,0.0855281]
[1754727068367,1.53801405,116910.0,116900.0,0.0855281]
[1754727069473,1.53801405,116910.0,116900.0,0.1095081]
[1754727072259,1.51910879,116910.0,116900.0,0.1095081]
[1754727072464,1.5382999,116910.0,116900.0,0.1095081]
[1754727076377,0.8166999,116910.0,116900.0,0.1095081]
[1754727076674,1.5382999,116910.0,116900.0,0.0855281]
[1754727077080,1.5382999,116910.0,116900.0,0.1095081]
[1754727080682,1.79953577,116910.0,116900.0,0.1095081]
[1754727085386,1.01582816,116910.0,116900.0,0.1095081]
[1754727085587,1.79953577,116910.0,116900.0,0.1095081]
[1754727085786,1.5382999,116910.0,116900.0,0.1095081]
[1754727086486,1.01582816,116910.0,116900.0,0.1095081]
[1754727086686,1.5382999,116910.0,116900.0,0.1095081]
[1754727087285,1.79953577,116910.0,116900.0,0.1095081]
[1754727099394,1.07793577,116910.0,116900.0,0.1095081]
[1754727099597,1.79953577,116910.0,116900.0,0.1095081]
[1754727113912,1.79953577,116910.0,116900.0,0.02398]
[1754727117220,1.86109773,116910.0,116900.0,0.02398]
[1754727121826,1.96109773,116910.0,116900.0,0.02398]
[1754727123426,2.13217773,116910.0,116880.0,0.02288]
[1754727123625,1.59084331,116890.0,116880.0,0.02288]
[1754727123924,1.61003442,116890.0,116880.0,0.2042931]
[1754727124126,1.70436341,116890.0,116880.0,0.2042931]
[1754727124328,1.78990295,116890.0,116880.0,0.2042931]
[1754727124523,1.52866708,116890.0,116880.0,0.2042931]
[1754727124819,1.78990295,116890.0,116880.0,0.2042931]
[1754727125021,1.52866708,116890.0,116880.0,0.2042931]
[1754727125617,1.52966708,116890.0,116880.0,0.2042931]
[1754727126624,1.00719534,116890.0,116880.0,0.2042931]
[1754727126822,1.076971,116890.0,116880.0,0.2042931]
[1754727127028,1.59944274,116890.0,116880.0,0.2042931]
[1754727127322,1.53066708,116890.0,116880.0,0.2042931]
[1754727132225,1.59810161,116890.0,116880.0,0.2042931]
[1754727136329,1.07562987,116890.0,116880.0,0.2042931]
[1754727136532,1.59810161,116890.0,116880.0,0.2042931]
[1754727142429,1.59810161,116890.0,116880.0,0.1561731]
[1754727142731,1.59810161,116890.0,116880.0,0.2025131]
[1754727153748,1.59810161,116890.0,116880.0,0.1084231]
[1754727154046,1.85933748,116890.0,116880.0,0.1084231]
[1754727156040,1.59810161,116890.0,116880.0,0.1084231]
[1754727157149,1.85933748,116890.0,116880.0,0.1084231]
[1754727157646,1.59810161,116890.0,116880.0,0.1084231]
[1754727157846,1.59810161,116890.0,116870.0,0.46074455]
[1754727157847,0.085543,116880.0,116870.0,0.46074455]
[1754727158147,1.78664585,116880.0,116870.0,0.46074455]
[1754727158346,1.88454307,116880.0,116870.0,0.46074455]
[1754727158548,1.97010456,116880.0,116870.0,0.46074455]
[1754727160150,1.97010456,116880.0,116870.0,0.46174455]
[1754727165656,2.23134043,116880.0,116870.0,0.46174455]
[1754727168656,1.97010456,116880.0,116870.0,0.46174455]
[1754727168857,1.44763282,116880.0,116870.0,0.46174455]
[1754727169059,1.97010456,116880.0,116870.0,0.46174455]
[1754727169254,2.23134043,116880.0,116870.0,0.46174455]
[1754727170260,1.97010456,116880.0,116870.0,0.46174455]
[1754727172460,2.33090456,116880.0,116870.0,0.46174455]
[1754727181878,1.80843282,116880.0,116870.0,0.46174455]
[1754727182070,2.33090456,116880.0,116870.0,0.46174455]
[1754727188578,2.32674456,116880.0,116870.0,0.46174455]
[1754727199187,1.01379282,116880.0,116870.0,0.46174455]
[1754727199385,2.32522456,116880.0,116870.0,0.46174455]
[1754727205692,1.60362456,116880.0,116870.0,0.46174455]
[1754727205894,2.32522456,116880.0,116870.0,0.46174455]
[1754727206690,1.60362456,116880.0,116870.0,0.46174455]
[1754727206989,2.32522456,116880.0,116870.0,0.46174455]
[1754727211183,2.58646043,116880.0,116870.0,0.46174455]
[1754727211382,2.32522456,116880.0,116870.0,0.46174455]
[1754727215292,1.60362456,116880.0,116870.0,0.46174455]
[1754727215496,2.32522456,116880.0,116870.0,0.46174455]
[1754727216605,2.58646043,116880.0,116870.0,0.46174455]
[1754727217699,1.80275282,116880.0,116870.0,0.46174455]
[1754727217900,2.58646043,116880.0,116870.0,0.46174455]
[1754727219701,1.80275282,116880.0,116870.0,0.46174455]
[1754727219902,2.58646043,116880.0,116870.0,0.46174455]
[1754727220701,1.80275282,116880.0,116870.0,0.46174455]
[1754727220903,2.58646043,116880.0,116870.0,0.46174455]
[1754727221202,1.86486043,116880.0,116870.0,0.46174455]
[1754727221402,2.58646043,116880.0,116870.0,0.46174455]
[1754727227306,2.32522456,116880.0,116870.0,0.46174455]
[1754727229409,1.60362456,116880.0,116870.0,0.46174455]
[1754727229599,2.32522456,116880.0,116870.0,0.46174455]
[1754727234412,1.80275282,116880.0,116870.0,0.46174455]
[1754727234710,2.32522456,116880.0,116870.0,0.46174455]
[1754727235711,1.60362456,116880.0,116870.0,0.46174455]
[1754727235913,2.32522456,116880.0,116870.0,0.46174455]
[1754727249033,1.80275282,116880.0,116870.0,0.46174455]
[1754727249220,2.32522456,116880.0,116870.0,0.46174455]
[1754727251033,1.60362456,116880.0,116870.0,0.46174455]
[1754727251235,2.32522456,116880.0,116870.0,0.46174455]
[1754727259740,1.80275282,116880.0,116870.0,0.46174455]
[1754727259939,2.32522456,116880.0,116870.0,0.46174455]
[1754727260742,1.53626456,116880.0,116870.0,0.46174455]
[1754727261040,2.32042456,116880.0,116870.0,0.46174455]